[Event "Live Chess"]
[Site "Chess.com"]
[Date "2023.05.20"]
[Round "-"]
[White "diana21strabt"]
[Black "AbilifyXL"]
[Result "0-1"]
[WhiteElo "1689"]
[BlackElo "1960"]
[TimeControl "300"]
[EndTime "14:41:38 PDT"]
[Termination "AbilifyXL won by checkmate"]

1. e4 {[%clk 0:04:53.3]} 1... d5 {[%clk 0:04:59.9]} 2. exd5 {[%clk 0:04:51.8]}
2... Qxd5 {[%clk 0:04:59.8]} 3. Nc3 {[%clk 0:04:49.5]} 3... Qa5 {[%clk
0:04:58.9]} 4. d4 {[%clk 0:04:47.6]} 4... c6 {[%clk 0:04:58.1]} 5. Bc4 {[%clk
0:04:46.5]} 5... Nf6 {[%clk 0:04:57.5]} 6. Qe2 {[%clk 0:04:45]} 6... Bf5 {[%clk
0:04:56.1]} 7. Bd2 {[%clk 0:04:44]} 7... Nbd7 {[%clk 0:04:54.9]} 8. Nb5 {[%clk
0:04:34.6]} 8... Qb6 {[%clk 0:04:38.4]} 9. Nd6+ {[%clk 0:04:32.9]} 9... Kd8
{[%clk 0:04:35.3]} 10. Nxf7+ {[%clk 0:04:31.8]} 10... Kc8 {[%clk 0:04:33.3]} 11.
Nxh8 {[%clk 0:04:29]} 11... Qxb2 {[%clk 0:04:28.8]} 12. Rd1 {[%clk 0:04:23]}
12... Bxc2 {[%clk 0:04:22.9]} 13. Rc1 {[%clk 0:04:21.9]} 13... e6 {[%clk
0:04:14.4]} 14. Bxe6 {[%clk 0:04:19.5]} 14... Bb4 {[%clk 0:04:12.6]} 15. Bxd7+
{[%clk 0:04:17.1]} 15... Kxd7 {[%clk 0:04:11.1]} 16. Nf3 {[%clk 0:03:47.3]}
16... Qxc1+ {[%clk 0:04:06.6]} 17. Qd1 {[%clk 0:03:42.4]} 17... Qxd1# {[%clk
0:04:04.7]} 0-1

[Event "Live Chess"]
[Site "Chess.com"]
[Date "2023.05.20"]
[Round "-"]
[White "elvenstar"]
[Black "OSmith06"]
[Result "1-0"]
[WhiteElo "1579"]
[BlackElo "1664"]
[TimeControl "300"]
[EndTime "14:41:42 PDT"]
[Termination "elvenstar won by checkmate"]

1. e4 {[%clk 0:04:56.8]} 1... c6 {[%clk 0:04:59]} 2. f4 {[%clk 0:04:54.5]} 2...
d5 {[%clk 0:04:58.9]} 3. exd5 {[%clk 0:04:52.9]} 3... cxd5 {[%clk 0:04:58.8]} 4.
d4 {[%clk 0:04:51.8]} 4... Nc6 {[%clk 0:04:57.5]} 5. Nf3 {[%clk 0:04:50.5]} 5...
Bg4 {[%clk 0:04:56.1]} 6. Be2 {[%clk 0:04:49.2]} 6... Nf6 {[%clk 0:04:49.8]} 7.
c3 {[%clk 0:04:46.9]} 7... e6 {[%clk 0:04:48.7]} 8. O-O {[%clk 0:04:45.3]} 8...
Bd6 {[%clk 0:04:47.7]} 9. Be3 {[%clk 0:04:43.9]} 9... Qc7 {[%clk 0:04:43.4]} 10.
Ne5 {[%clk 0:04:41.4]} 10... Bxe2 {[%clk 0:04:39.7]} 11. Qxe2 {[%clk 0:04:39.6]}
11... Ne4 {[%clk 0:04:34.6]} 12. Nd2 {[%clk 0:04:37.1]} 12... Nxd2 {[%clk
0:04:31]} 13. Bxd2 {[%clk 0:04:29]} 13... O-O {[%clk 0:04:26.5]} 14. Rf3 {[%clk
0:04:26.1]} 14... Qb6 {[%clk 0:04:20.3]} 15. b3 {[%clk 0:04:18.9]} 15... Rac8
{[%clk 0:04:08.2]} 16. Nd7 {[%clk 0:04:17.1]} 16... Qc7 {[%clk 0:03:52.8]} 17.
Nxf8 {[%clk 0:04:15.5]} 17... Rxf8 {[%clk 0:03:52.3]} 18. Raf1 {[%clk
0:04:12.2]} 18... Qa5 {[%clk 0:03:48.3]} 19. Bc1 {[%clk 0:03:57.9]} 19... Rc8
{[%clk 0:03:40.1]} 20. f5 {[%clk 0:03:38.5]} 20... exf5 {[%clk 0:03:30.3]} 21.
Rxf5 {[%clk 0:03:36.4]} 21... Ne7 {[%clk 0:03:27.7]} 22. Rxf7 {[%clk 0:03:33.4]}
22... Ng6 {[%clk 0:03:11.7]} 23. Qe6 {[%clk 0:03:26.2]} 23... Qd8 {[%clk
0:02:50.3]} 24. Rf8# {[%clk 0:03:20]} 1-0

[Event "Live Chess"]
[Site "Chess.com"]
[Date "2023.05.20"]
[Round "-"]
[White "Wild_Tiger"]
[Black "RamsayFlayer"]
[Result "1/2-1/2"]
[WhiteElo "1080"]
[BlackElo "1979"]
[TimeControl "300"]
[EndTime "14:41:45 PDT"]
[Termination "Game drawn - timeout vs insufficient material"]

1. d4 {[%clk 0:04:58.1]} 1... d5 {[%clk 0:04:58.3]} 2. Nf3 {[%clk 0:04:53.6]}
2... c5 {[%clk 0:04:56.5]} 3. e3 {[%clk 0:04:53.5]} 3... cxd4 {[%clk 0:04:53.1]}
4. exd4 {[%clk 0:04:51.7]} 4... Nc6 {[%clk 0:04:51.8]} 5. Bd3 {[%clk 0:04:48]}
5... Bg4 {[%clk 0:04:37.6]} 6. Bg5 {[%clk 0:04:38.4]} 6... Nxd4 {[%clk
0:04:33.1]} 7. Nbd2 {[%clk 0:04:29]} 7... Nxf3+ {[%clk 0:04:29.9]} 8. Nxf3
{[%clk 0:04:26.9]} 8... Nf6 {[%clk 0:04:27.9]} 9. Bxf6 {[%clk 0:04:24.3]} 9...
exf6 {[%clk 0:04:26.3]} 10. Be2 {[%clk 0:04:17.1]} 10... Bb4+ {[%clk 0:04:12.1]}
11. c3 {[%clk 0:04:14.5]} 11... Bc5 {[%clk 0:04:06.2]} 12. O-O {[%clk 0:04:12]}
12... O-O {[%clk 0:04:04]} 13. Qc2 {[%clk 0:04:06.3]} 13... Bh5 {[%clk 0:03:54]}
14. b4 {[%clk 0:03:52.2]} 14... Bg6 {[%clk 0:03:49.3]} 15. Bd3 {[%clk
0:03:45.1]} 15... Bxd3 {[%clk 0:03:43.9]} 16. Qxd3 {[%clk 0:03:45]} 16... Bb6
{[%clk 0:03:39.7]} 17. a4 {[%clk 0:03:42.2]} 17... Bc7 {[%clk 0:03:35.3]} 18.
Rfe1 {[%clk 0:03:36.1]} 18... Qd6 {[%clk 0:03:27.9]} 19. a5 {[%clk 0:03:15]}
19... Rfe8 {[%clk 0:03:21.7]} 20. h3 {[%clk 0:03:06.8]} 20... Re6 {[%clk
0:03:15.7]} 21. Rxe6 {[%clk 0:02:47.5]} 21... fxe6 {[%clk 0:03:15.6]} 22. g3
{[%clk 0:02:42.3]} 22... e5 {[%clk 0:03:12.9]} 23. Kg2 {[%clk 0:02:38.3]} 23...
e4 {[%clk 0:03:10.3]} 24. Qe3 {[%clk 0:02:21.1]} 24... exf3+ {[%clk 0:03:07.9]}
25. Qxf3 {[%clk 0:02:20.8]} 25... Re8 {[%clk 0:02:59]} 26. Rd1 {[%clk
0:02:19.6]} 26... Qe5 {[%clk 0:02:30.9]} 27. Rxd5 {[%clk 0:02:13.6]} 27... Qe4
{[%clk 0:02:28.8]} 28. Rd7 {[%clk 0:01:51.2]} 28... Qxf3+ {[%clk 0:02:20.1]} 29.
Kxf3 {[%clk 0:01:51.1]} 29... Be5 {[%clk 0:02:18.7]} 30. Rxb7 {[%clk 0:01:48.3]}
30... Bxc3 {[%clk 0:02:17.1]} 31. Rxa7 {[%clk 0:01:40.4]} 31... Bxb4 {[%clk
0:02:15.5]} 32. a6 {[%clk 0:01:39.2]} 32... Re5 {[%clk 0:02:02.3]} 33. Rc7
{[%clk 0:01:35.1]} 33... Ra5 {[%clk 0:01:59.1]} 34. a7 {[%clk 0:01:30.4]} 34...
h6 {[%clk 0:01:46]} 35. Rb7 {[%clk 0:01:28.9]} 35... Bd6 {[%clk 0:01:41.4]} 36.
Rb8+ {[%clk 0:01:17]} 36... Kh7 {[%clk 0:01:27.3]} 37. a8=Q {[%clk 0:01:09.3]}
37... Rxa8 {[%clk 0:01:25.9]} 38. Rxa8 {[%clk 0:01:09.2]} 38... Kg6 {[%clk
0:01:23.7]} 39. Ra5 {[%clk 0:01:03]} 39... Be5 {[%clk 0:01:22.6]} 40. Rd5 {[%clk
0:01:01.1]} 40... Bc3 {[%clk 0:01:21]} 41. Kg4 {[%clk 0:00:58.1]} 41... Be5
{[%clk 0:01:20.9]} 42. f4 {[%clk 0:00:56]} 42... Bc3 {[%clk 0:01:15]} 43. h4
{[%clk 0:00:52.6]} 43... Bb4 {[%clk 0:01:10.4]} 44. h5+ {[%clk 0:00:50.5]} 44...
Kh7 {[%clk 0:01:04.4]} 45. Kf5 {[%clk 0:00:49.2]} 45... Be1 {[%clk 0:00:57.7]}
46. g4 {[%clk 0:00:46.1]} 46... Bh4 {[%clk 0:00:53.3]} 47. Rd7 {[%clk
0:00:42.9]} 47... Bg3 {[%clk 0:00:41.8]} 48. Rf7 {[%clk 0:00:38.2]} 48... Bh4
{[%clk 0:00:40.8]} 49. Rf8 {[%clk 0:00:35]} 49... Bg3 {[%clk 0:00:39.6]} 50. g5
{[%clk 0:00:32.7]} 50... hxg5 {[%clk 0:00:36.9]} 51. fxg5 {[%clk 0:00:31.9]}
51... fxg5 {[%clk 0:00:35.8]} 52. Kxg5 {[%clk 0:00:30.4]} 52... Be5 {[%clk
0:00:34.7]} 53. Rf7 {[%clk 0:00:28]} 53... Bd4 {[%clk 0:00:32.7]} 54. h6 {[%clk
0:00:23.4]} 54... Bf6+ {[%clk 0:00:31]} 55. Kh5 {[%clk 0:00:16.8]} 55... Kg8
{[%clk 0:00:21.3]} 56. Ra7 {[%clk 0:00:13.3]} 56... gxh6 {[%clk 0:00:17.3]} 57.
Kxh6 {[%clk 0:00:11.5]} 57... Kf8 {[%clk 0:00:15.5]} 58. Kg6 {[%clk 0:00:09.7]}
58... Bd4 {[%clk 0:00:13.7]} 59. Rd7 {[%clk 0:00:05]} 59... Bb6 {[%clk
0:00:11.5]} 60. Kf6 {[%clk 0:00:02.8]} 60... Ke8 {[%clk 0:00:10.4]} 61. Ke6
{[%clk 0:00:01.6]} 61... Kf8 {[%clk 0:00:08.2]} 62. Kf6 {[%clk 0:00:01.3]} 62...
Kg8 {[%clk 0:00:07.1]} 1/2-1/2

[Event "Live Chess"]
[Site "Chess.com"]
[Date "2023.05.20"]
[Round "-"]
[White "Stanbad1"]
[Black "CheckThis4"]
[Result "1/2-1/2"]
[WhiteElo "2392"]
[BlackElo "2542"]
[TimeControl "300"]
[EndTime "14:41:46 PDT"]
[Termination "Game drawn by repetition"]

1. d4 {[%clk 0:04:58.3]} 1... Nf6 {[%clk 0:04:53.6]} 2. Bg5 {[%clk 0:04:56.2]}
2... d5 {[%clk 0:04:50.2]} 3. Nd2 {[%clk 0:04:54]} 3... c5 {[%clk 0:04:45.9]} 4.
c3 {[%clk 0:04:52.6]} 4... Nc6 {[%clk 0:04:42.8]} 5. e3 {[%clk 0:04:51.2]} 5...
Qb6 {[%clk 0:04:25]} 6. Qb3 {[%clk 0:04:48.5]} 6... c4 {[%clk 0:04:21.3]} 7. Qc2
{[%clk 0:04:45.5]} 7... g6 {[%clk 0:04:18.5]} 8. Bxf6 {[%clk 0:04:41.8]} 8...
exf6 {[%clk 0:04:17]} 9. e4 {[%clk 0:04:41]} 9... Na5 {[%clk 0:03:59.4]} 10.
exd5 {[%clk 0:04:38.1]} 10... Bf5 {[%clk 0:03:57.9]} 11. Qa4+ {[%clk 0:04:35.9]}
11... Bd7 {[%clk 0:03:54.8]} 12. Qc2 {[%clk 0:04:34.9]} 12... Bf5 {[%clk
0:03:52.6]} 13. Qa4+ {[%clk 0:04:34]} 13... Bd7 {[%clk 0:03:49.9]} 14. Qc2
{[%clk 0:04:31.7]} 14... Bf5 {[%clk 0:03:46.9]} 1/2-1/2

[Event "Live Chess"]
[Site "Chess.com"]
[Date "2023.05.20"]
[Round "-"]
[White "stevochess11"]
[Black "TheSmoulderingMaster"]
[Result "0-1"]
[WhiteElo "1760"]
[BlackElo "1705"]
[TimeControl "300"]
[EndTime "14:42:00 PDT"]
[Termination "TheSmoulderingMaster won by resignation"]

1. d4 {[%clk 0:04:58.1]} 1... Nf6 {[%clk 0:04:58.9]} 2. Nf3 {[%clk 0:04:57]}
2... d6 {[%clk 0:04:58.5]} 3. Nc3 {[%clk 0:04:51.8]} 3... g6 {[%clk 0:04:57.6]}
4. e4 {[%clk 0:04:50.7]} 4... Bg7 {[%clk 0:04:56.3]} 5. Be3 {[%clk 0:04:49.4]}
5... O-O {[%clk 0:04:54.8]} 6. Qd2 {[%clk 0:04:48.4]} 6... Ng4 {[%clk 0:04:54]}
7. Bg5 {[%clk 0:04:47.2]} 7... c6 {[%clk 0:04:52.1]} 8. h3 {[%clk 0:04:45.9]}
8... Nf6 {[%clk 0:04:45]} 9. Bd3 {[%clk 0:04:44.8]} 9... b6 {[%clk 0:04:44.2]}
10. Bh6 {[%clk 0:04:37.3]} 10... b5 {[%clk 0:04:42.7]} 11. Ne2 {[%clk
0:04:35.3]} 11... a5 {[%clk 0:04:40.9]} 12. c3 {[%clk 0:04:33.8]} 12... Ba6
{[%clk 0:04:38.8]} 13. Ng3 {[%clk 0:04:32.2]} 13... b4 {[%clk 0:04:36.7]} 14.
Qg5 {[%clk 0:04:25.8]} 14... Bxd3 {[%clk 0:04:34.4]} 15. Nf5 {[%clk 0:04:23.9]}
15... Nxe4 {[%clk 0:04:27.9]} 16. Nxe7+ {[%clk 0:04:17.1]} 16... Kh8 {[%clk
0:04:24.8]} 17. Qh4 {[%clk 0:04:04.4]} 17... Bxh6 {[%clk 0:04:18.1]} 18. Qxh6
{[%clk 0:04:02.8]} 18... Qxe7 {[%clk 0:04:17]} 19. O-O-O {[%clk 0:03:59.7]}
19... Be2 {[%clk 0:04:12.6]} 20. Rde1 {[%clk 0:03:53.9]} 20... Bxf3 {[%clk
0:04:11.3]} 21. gxf3 {[%clk 0:03:53.8]} 21... Qg5+ {[%clk 0:04:10]} 22. Qxg5
{[%clk 0:03:48.4]} 22... Nxg5 {[%clk 0:04:09.3]} 23. f4 {[%clk 0:03:46.7]} 23...
Nf3 {[%clk 0:04:08.2]} 24. Re3 {[%clk 0:03:45.4]} 24... Nh4 {[%clk 0:04:07.1]}
25. Rhe1 {[%clk 0:03:43.3]} 25... Na6 {[%clk 0:04:05.6]} 26. cxb4 {[%clk
0:03:41]} 26... Nxb4 {[%clk 0:04:04.5]} 27. Rc3 {[%clk 0:03:40.2]} 27... Nxa2+
{[%clk 0:04:03.2]} 0-1

[Event "Live Chess"]
[Site "Chess.com"]
[Date "2023.05.20"]
[Round "-"]
[White "SupremeTactician"]
[Black "therealab0ne"]
[Result "1-0"]
[WhiteElo "2367"]
[BlackElo "701"]
[TimeControl "300"]
[EndTime "14:42:39 PDT"]
[Termination "SupremeTactician won on time"]

1. e4 {[%clk 0:04:59.4]} 1... c5 {[%clk 0:04:58.9]} 2. Nf3 {[%clk 0:04:58.4]}
2... Nc6 {[%clk 0:04:58.4]} 3. d4 {[%clk 0:04:57.9]} 3... cxd4 {[%clk
0:04:57.7]} 4. Nxd4 {[%clk 0:04:57.8]} 4... Nf6 {[%clk 0:04:57.1]} 5. Nc3 {[%clk
0:04:57.5]} 5... g6 {[%clk 0:04:54.9]} 6. Nxc6 {[%clk 0:04:56.1]} 6... bxc6
{[%clk 0:04:51.9]} 7. Bd3 {[%clk 0:04:56]} 7... Bg7 {[%clk 0:04:49.9]} 8. O-O
{[%clk 0:04:54.8]} 8... O-O {[%clk 0:04:49.2]} 9. f3 {[%clk 0:04:53.3]} 9... d5
{[%clk 0:04:40.7]} 10. exd5 {[%clk 0:04:49.4]} 10... Nxd5 {[%clk 0:04:39.6]} 11.
Nxd5 {[%clk 0:04:48.3]} 11... cxd5 {[%clk 0:04:35.9]} 12. c3 {[%clk 0:04:33.9]}
12... d4 {[%clk 0:04:06]} 13. c4 {[%clk 0:04:24.1]} 13... e5 {[%clk 0:03:56.2]}
14. b4 {[%clk 0:04:14.7]} 14... Be6 {[%clk 0:03:38.6]} 15. c5 {[%clk 0:04:03]}
15... a5 {[%clk 0:03:21.7]} 16. b5 {[%clk 0:04:00.3]} 16... Qd5 {[%clk
0:03:05.8]} 17. Ba3 {[%clk 0:03:36.9]} 17... Bf5 {[%clk 0:02:37.4]} 18. Bxf5
{[%clk 0:03:22.3]} 18... gxf5 {[%clk 0:02:36.3]} 19. Qb3 {[%clk 0:03:08.7]}
19... Qxb3 {[%clk 0:02:11.8]} 20. axb3 {[%clk 0:03:08.6]} 20... e4 {[%clk
0:01:56.7]} 21. fxe4 {[%clk 0:02:49.7]} 21... fxe4 {[%clk 0:01:55]} 22. b6
{[%clk 0:02:31.1]} 22... d3 {[%clk 0:01:51.2]} 23. Rad1 {[%clk 0:02:23.6]} 23...
Rad8 {[%clk 0:01:33.1]} 24. c6 {[%clk 0:02:18.3]} 24... Bd4+ {[%clk 0:01:19.6]}
25. Kh1 {[%clk 0:02:17.2]} 25... Bxb6 {[%clk 0:01:18.7]} 26. Bxf8 {[%clk
0:02:15.8]} 26... Rxf8 {[%clk 0:01:17]} 27. Rf4 {[%clk 0:01:59.6]} 27... Re8
{[%clk 0:00:52]} 28. Rff1 {[%clk 0:01:39.2]} 28... Rd8 {[%clk 0:00:44.5]} 29.
Rfe1 {[%clk 0:01:26.8]} 29... e3 {[%clk 0:00:40.1]} 30. c7 {[%clk 0:01:23.7]}
30... Bxc7 {[%clk 0:00:16.4]} 31. Rxe3 {[%clk 0:01:20]} 31... Kg7 {[%clk
0:00:09.7]} 32. Rexd3 {[%clk 0:01:18.1]} 32... Rxd3 {[%clk 0:00:08.3]} 33. Rxd3
{[%clk 0:01:17.3]} 33... Kf6 {[%clk 0:00:07]} 34. g3 {[%clk 0:01:16.1]} 34...
Ke5 {[%clk 0:00:05.9]} 35. Kg2 {[%clk 0:01:15.1]} 35... Ke4 {[%clk 0:00:05.3]}
36. Rd7 {[%clk 0:01:14]} 36... Be5 {[%clk 0:00:04]} 37. Kf2 {[%clk 0:01:08.5]}
37... Bd4+ {[%clk 0:00:02.1]} 38. Ke2 {[%clk 0:01:08]} 1-0

[Event "Live Chess"]
[Site "Chess.com"]
[Date "2023.05.20"]
[Round "-"]
[White "Biranidun"]
[Black "lightningorderyt"]
[Result "1-0"]
[WhiteElo "2764"]
[BlackElo "520"]
[TimeControl "300"]
[EndTime "14:42:45 PDT"]
[Termination "Biranidun won by checkmate"]

1. e4 {[%clk 0:04:51.4]} 1... e5 {[%clk 0:04:59.9]} 2. Nf3 {[%clk 0:04:47.7]}
2... Nf6 {[%clk 0:04:58.8]} 3. Nxe5 {[%clk 0:04:46.7]} 3... Nc6 {[%clk
0:04:53.9]} 4. Nxc6 {[%clk 0:04:43.6]} 4... dxc6 {[%clk 0:04:52.5]} 5. d3 {[%clk
0:04:42.4]} 5... Bb4+ {[%clk 0:04:46.7]} 6. c3 {[%clk 0:04:41.4]} 6... Ba5
{[%clk 0:04:44.9]} 7. Be2 {[%clk 0:04:40.4]} 7... O-O {[%clk 0:04:27.4]} 8. O-O
{[%clk 0:04:38.3]} 8... b6 {[%clk 0:04:09.9]} 9. b4 {[%clk 0:04:26.6]} 9... Bxb4
{[%clk 0:03:51.4]} 10. cxb4 {[%clk 0:04:26.5]} 10... c5 {[%clk 0:03:49.5]} 11.
bxc5 {[%clk 0:04:25.2]} 11... bxc5 {[%clk 0:03:48.5]} 12. Nc3 {[%clk 0:04:24.7]}
12... Bb7 {[%clk 0:03:43.4]} 13. Be3 {[%clk 0:04:23.9]} 13... Qe7 {[%clk
0:03:28.6]} 14. Na4 {[%clk 0:04:22.3]} 14... Bc6 {[%clk 0:03:18.8]} 15. Bxc5
{[%clk 0:04:20.9]} 15... Qe5 {[%clk 0:03:04.4]} 16. Bxf8 {[%clk 0:04:19.1]}
16... Kxf8 {[%clk 0:03:00.7]} 17. Rc1 {[%clk 0:04:17.6]} 17... Qe8 {[%clk
0:02:42]} 18. Nc5 {[%clk 0:04:13.8]} 18... Nd7 {[%clk 0:02:30.7]} 19. Nxd7+
{[%clk 0:04:10.2]} 19... Qxd7 {[%clk 0:02:26.5]} 20. Qc2 {[%clk 0:03:51]} 20...
g6 {[%clk 0:02:18.2]} 21. Qxc6 {[%clk 0:03:49.8]} 21... Qxc6 {[%clk 0:02:16.1]}
22. Rxc6 {[%clk 0:03:49.7]} 22... Re8 {[%clk 0:02:09.5]} 23. Rxc7 {[%clk
0:03:48.6]} 23... f5 {[%clk 0:02:06.7]} 24. Rb1 {[%clk 0:03:46.4]} 24... fxe4
{[%clk 0:02:05.3]} 25. dxe4 {[%clk 0:03:46.3]} 25... g5 {[%clk 0:02:02.8]} 26.
Bh5 {[%clk 0:03:43.2]} 26... Rxe4 {[%clk 0:02:01.1]} 27. Rb8+ {[%clk 0:03:42.3]}
27... Re8 {[%clk 0:01:58.2]} 28. Rxe8# {[%clk 0:03:42.2]} 1-0

[Event "Live Chess"]
[Site "Chess.com"]
[Date "2023.05.20"]
[Round "-"]
[White "BJAW87"]
[Black "ViktorTheCoolBoy"]
[Result "0-1"]
[WhiteElo "1435"]
[BlackElo "2513"]
[TimeControl "300"]
[EndTime "14:42:46 PDT"]
[Termination "ViktorTheCoolBoy won by resignation"]

1. e4 {[%clk 0:04:58.6]} 1... c5 {[%clk 0:04:58.8]} 2. Nc3 {[%clk 0:04:57.9]}
2... e6 {[%clk 0:04:56.4]} 3. f4 {[%clk 0:04:57.5]} 3... d5 {[%clk 0:04:54.1]}
4. exd5 {[%clk 0:04:56.8]} 4... exd5 {[%clk 0:04:54]} 5. d4 {[%clk 0:04:55]}
5... Nc6 {[%clk 0:04:51.6]} 6. Nf3 {[%clk 0:04:54.5]} 6... Bg4 {[%clk
0:04:49.3]} 7. Bb5 {[%clk 0:04:51.4]} 7... Nf6 {[%clk 0:04:42.3]} 8. O-O {[%clk
0:04:45.9]} 8... Be7 {[%clk 0:04:40.9]} 9. h3 {[%clk 0:04:30.6]} 9... Bxf3
{[%clk 0:04:39.3]} 10. Qxf3 {[%clk 0:04:30.5]} 10... cxd4 {[%clk 0:04:37]} 11.
Bxc6+ {[%clk 0:04:27.9]} 11... bxc6 {[%clk 0:04:35.9]} 12. Ne2 {[%clk
0:04:26.3]} 12... c5 {[%clk 0:04:35.2]} 13. f5 {[%clk 0:04:02.9]} 13... O-O
{[%clk 0:04:32.9]} 14. Qg3 {[%clk 0:04:00.4]} 14... Ne4 {[%clk 0:04:31]} 15. Qg4
{[%clk 0:03:51.1]} 15... Bf6 {[%clk 0:04:29.9]} 16. Ng3 {[%clk 0:03:46.9]} 16...
Nxg3 {[%clk 0:04:27.2]} 17. Qxg3 {[%clk 0:03:46.8]} 17... Re8 {[%clk 0:04:26.1]}
18. Bf4 {[%clk 0:03:41.4]} 18... Qb6 {[%clk 0:04:24.4]} 19. b3 {[%clk
0:03:39.3]} 19... c4 {[%clk 0:04:23.5]} 20. Kh1 {[%clk 0:03:35.3]} 20... Re4
{[%clk 0:04:20]} 21. h4 {[%clk 0:03:27.3]} 21... Kh8 {[%clk 0:04:07]} 22. h5
{[%clk 0:03:25.8]} 22... h6 {[%clk 0:04:05.6]} 23. Rae1 {[%clk 0:03:18.8]} 23...
Rae8 {[%clk 0:04:02]} 24. Kh2 {[%clk 0:02:57.1]} 24... Qd8 {[%clk 0:03:57]} 25.
a4 {[%clk 0:02:38]} 25... Bh4 {[%clk 0:03:55.3]} 26. Rxe4 {[%clk 0:02:11.8]}
26... Bxg3+ {[%clk 0:03:50.2]} 27. Bxg3 {[%clk 0:02:11.7]} 27... Rxe4 {[%clk
0:03:47.8]} 0-1

[Event "Live Chess"]
[Site "Chess.com"]
[Date "2023.05.20"]
[Round "-"]
[White "OmeetAtara"]
[Black "WilliamofOrange16th"]
[Result "1/2-1/2"]
[WhiteElo "1814"]
[BlackElo "1838"]
[TimeControl "300"]
[EndTime "14:42:48 PDT"]
[Termination "Game drawn - insufficient material"]

1. d4 {[%clk 0:04:58.6]} 1... Nf6 {[%clk 0:04:55.7]} 2. Bg5 {[%clk 0:04:58.1]}
2... Ne4 {[%clk 0:04:53.7]} 3. Bf4 {[%clk 0:04:56.5]} 3... d5 {[%clk 0:04:51.2]}
4. f3 {[%clk 0:04:55.4]} 4... Nf6 {[%clk 0:04:49.9]} 5. Nc3 {[%clk 0:04:53.9]}
5... g6 {[%clk 0:04:48.7]} 6. e4 {[%clk 0:04:52.5]} 6... dxe4 {[%clk 0:04:47.4]}
7. fxe4 {[%clk 0:04:52.4]} 7... Bg7 {[%clk 0:04:43.9]} 8. Nf3 {[%clk 0:04:51.6]}
8... Bg4 {[%clk 0:04:40.7]} 9. Be2 {[%clk 0:04:50.8]} 9... c6 {[%clk 0:04:38.7]}
10. O-O {[%clk 0:04:49.5]} 10... Nbd7 {[%clk 0:04:37.5]} 11. Ne5 {[%clk
0:04:47.2]} 11... Bxe2 {[%clk 0:04:35.4]} 12. Nxe2 {[%clk 0:04:43.8]} 12... Nxe5
{[%clk 0:04:34.2]} 13. Bxe5 {[%clk 0:04:43.7]} 13... O-O {[%clk 0:04:27.8]} 14.
Ng3 {[%clk 0:04:42.3]} 14... Nd7 {[%clk 0:04:21.9]} 15. Bxg7 {[%clk 0:04:40.8]}
15... Kxg7 {[%clk 0:04:21.8]} 16. c3 {[%clk 0:04:40]} 16... e5 {[%clk
0:04:19.7]} 17. Qg4 {[%clk 0:04:37.6]} 17... Nf6 {[%clk 0:04:14.3]} 18. Qg5
{[%clk 0:04:28.7]} 18... Nd7 {[%clk 0:04:00.9]} 19. Qxd8 {[%clk 0:04:26.7]}
19... Raxd8 {[%clk 0:03:59]} 20. d5 {[%clk 0:04:25.8]} 20... Nc5 {[%clk
0:03:51.8]} 21. b4 {[%clk 0:04:23.3]} 21... Nd3 {[%clk 0:03:48.7]} 22. Rad1
{[%clk 0:04:21.4]} 22... Nb2 {[%clk 0:03:38.3]} 23. Rb1 {[%clk 0:04:17.7]} 23...
Nc4 {[%clk 0:03:35.7]} 24. Rfd1 {[%clk 0:04:16.1]} 24... f5 {[%clk 0:03:29.7]}
25. dxc6 {[%clk 0:04:12.1]} 25... bxc6 {[%clk 0:03:29.6]} 26. Rxd8 {[%clk
0:04:09.9]} 26... Rxd8 {[%clk 0:03:28]} 27. exf5 {[%clk 0:04:09.8]} 27... gxf5
{[%clk 0:03:25.3]} 28. Nxf5+ {[%clk 0:04:09.7]} 28... Kf6 {[%clk 0:03:24.8]} 29.
Rf1 {[%clk 0:04:06]} 29... Kg5 {[%clk 0:03:22.7]} 30. h4+ {[%clk 0:04:02.1]}
30... Kg4 {[%clk 0:03:17.1]} 31. Kh2 {[%clk 0:03:55.7]} 31... Rd3 {[%clk
0:03:13.4]} 32. Ne7 {[%clk 0:03:47.8]} 32... Rxc3 {[%clk 0:03:09.6]} 33. Nxc6
{[%clk 0:03:46.8]} 33... Kxh4 {[%clk 0:02:53.4]} 34. Rf5 {[%clk 0:03:40.4]}
34... e4 {[%clk 0:02:49.6]} 35. Rf4+ {[%clk 0:03:38.9]} 35... Kg5 {[%clk
0:02:47.8]} 36. Rxe4 {[%clk 0:03:38.2]} 36... Nd6 {[%clk 0:02:37]} 37. Re5+
{[%clk 0:03:30.5]} 37... Kf6 {[%clk 0:02:36]} 38. Rc5 {[%clk 0:03:29.6]} 38...
Ra3 {[%clk 0:02:33]} 39. Rc2 {[%clk 0:03:26.7]} 39... a6 {[%clk 0:02:30.2]} 40.
Nb8 {[%clk 0:03:22.5]} 40... Ke5 {[%clk 0:02:19.9]} 41. Nd7+ {[%clk 0:03:18.3]}
41... Kd4 {[%clk 0:02:16.7]} 42. Rd2+ {[%clk 0:03:15.2]} 42... Rd3 {[%clk
0:02:13.4]} 43. Rxd3+ {[%clk 0:03:14]} 43... Kxd3 {[%clk 0:02:13.3]} 44. Nc5+
{[%clk 0:03:11.9]} 44... Kc4 {[%clk 0:02:12.2]} 45. Nxa6 {[%clk 0:03:11.8]}
45... Kb5 {[%clk 0:02:11.6]} 46. Nc7+ {[%clk 0:03:09.2]} 46... Kxb4 {[%clk
0:02:11]} 47. Nd5+ {[%clk 0:03:07.1]} 47... Ka3 {[%clk 0:02:10.1]} 48. Nf6
{[%clk 0:03:07]} 48... h6 {[%clk 0:02:08.4]} 49. Ng4 {[%clk 0:03:05.3]} 49...
Nf7 {[%clk 0:02:07.4]} 50. Kh3 {[%clk 0:03:03.7]} 50... Kxa2 {[%clk 0:02:07.3]}
51. Kh4 {[%clk 0:03:03.1]} 51... Kb3 {[%clk 0:02:07.2]} 52. Kh5 {[%clk
0:03:02.5]} 52... Kc4 {[%clk 0:02:03.8]} 53. Nxh6 {[%clk 0:03:01.2]} 53... Ne5
{[%clk 0:02:02.6]} 54. Ng4 {[%clk 0:02:58.2]} 54... Nd3 {[%clk 0:01:58.2]} 55.
Kg5 {[%clk 0:02:54.9]} 55... Kd5 {[%clk 0:01:54.5]} 56. Nf6+ {[%clk 0:02:54.1]}
56... Ke6 {[%clk 0:01:53.6]} 57. Ne4 {[%clk 0:02:51.9]} 57... Ne5 {[%clk
0:01:45.3]} 58. Kf4 {[%clk 0:02:49.3]} 58... Ng6+ {[%clk 0:01:43.9]} 59. Kg4
{[%clk 0:02:47.2]} 59... Ne5+ {[%clk 0:01:42.7]} 60. Kg5 {[%clk 0:02:45.1]}
60... Nf7+ {[%clk 0:01:38.6]} 61. Kf4 {[%clk 0:02:41.3]} 61... Nh6 {[%clk
0:01:33.5]} 62. g3 {[%clk 0:02:40]} 62... Nf5 {[%clk 0:01:24.8]} 63. g4 {[%clk
0:02:35.9]} 63... Ng7 {[%clk 0:01:20.2]} 64. Ng5+ {[%clk 0:02:33.8]} 64... Kf6
{[%clk 0:01:19.2]} 65. Ne4+ {[%clk 0:02:32.6]} 65... Kg6 {[%clk 0:01:18.3]} 66.
Ng3 {[%clk 0:02:30.2]} 66... Ne6+ {[%clk 0:01:17]} 67. Ke5 {[%clk 0:02:29.2]}
67... Kg5 {[%clk 0:01:14.3]} 68. Kxe6 {[%clk 0:02:28.3]} 68... Kxg4 {[%clk
0:01:13.5]} 1/2-1/2